Department family,Entity,Date,Expense type,Expense area,Supplier,Transaction number,Amount,Description
Department of Health,NHS Blood and Transplant,16/03/2012,CARRIAGE INWARDS,Specialist Services,VH BIO LTD,1586602,66,Carriage charges on stores purchases
Department of Health,NHS Blood and Transplant,23/03/2012,CARRIAGE INWARDS,Specialist Services,VH BIO LTD,1571416,66,Carriage charges on stores purchases
Department of Health,NHS Blood and Transplant,16/03/2012,VEHICLE FUEL & OILS,Blood Donation,ALLSTAR BUSINESS SOLUTIONS LTD,1587419,2387.78,Charges for vehicle fuel
Department of Health,NHS Blood and Transplant,28/03/2012,VEHICLE FUEL & OILS,Estates & Logistics,HARVEST ENERGY LTD,1588687,30581.76,Charges for vehicle fuel
Department of Health,NHS Blood and Transplant,16/03/2012,VEHICLE FUEL & OILS,Estates & Logistics,ALLSTAR BUSINESS SOLUTIONS LTD,1587419,38344.16,Charges for vehicle fuel
Department of Health,NHS Blood and Transplant,16/03/2012,VEHICLE FUEL & OILS,Organ Donation & Transplantation,ALLSTAR BUSINESS SOLUTIONS LTD,1587419,92.02,Charges for vehicle fuel
Department of Health,NHS Blood and Transplant,28/03/2012,NBA RECHARGES,Clinical,UNIVERSITY OF GLASGOW,1591986,25009,Charges from third parties for Research & Development projects
Department of Health,NHS Blood and Transplant,28/03/2012,NBA RECHARGES,Clinical,UNIVERSITY OF BRISTOL,1591981,29175.95,Charges from third parties for Research & Development projects
Department of Health,NHS Blood and Transplant,28/03/2012,NBA RECHARGES,Clinical,UNIVERSITY OF BRISTOL,1590620,33806,Charges from third parties for Research & Development projects
Department of Health,NHS Blood and Transplant,28/03/2012,NBA RECHARGES,Clinical,UNIVERSITY OF BRISTOL,1590623,34656.5,Charges from third parties for Research & Development projects
Department of Health,NHS Blood and Transplant,28/03/2012,NBA RECHARGES,Clinical,UNIVERSITY OF BIRMINGHAM,1588422,38041.59,Charges from third parties for Research & Development projects
Department of Health,NHS Blood and Transplant,02/03/2012,NBA RECHARGES,Clinical,UNIVERSITY OF OXFORD,1582282,48086,Charges from third parties for Research & Development projects
Department of Health,NHS Blood and Transplant,09/03/2012,NBA RECHARGES,Clinical,UNIVERSITY OF OXFORD,1584404,53595,Charges from third parties for Research & Development projects
Department of Health,NHS Blood and Transplant,09/03/2012,NBA RECHARGES,Clinical,UNIVERSITY OF OXFORD,1584403,61138,Charges from third parties for Research & Development projects
Department of Health,NHS Blood and Transplant,02/03/2012,NBA RECHARGES,Clinical,UNIVERSITY COLLEGE LONDON,1584352,68576.25,Charges from third parties for Research & Development projects
Department of Health,NHS Blood and Transplant,28/03/2012,NBA RECHARGES,Clinical,UNIVERSITY OF CAMBRIDGE,1594049,75000,Charges from third parties for Research & Development projects
Department of Health,NHS Blood and Transplant,23/03/2012,NBA RECHARGES,Clinical,HEALTH PROTECTION AGENCY (PHLS),1588543,80000,Charges from third parties for Research & Development projects
Department of Health,NHS Blood and Transplant,28/03/2012,NBA RECHARGES,Clinical,UNIVERSITY OF BRISTOL,1594054,135000,Charges from third parties for Research & Development projects
Department of Health,NHS Blood and Transplant,02/03/2012,NBA RECHARGES,Clinical,UNIVERSITY COLLEGE LONDON,1584353,137152.5,Charges from third parties for Research & Development projects
Department of Health,NHS Blood and Transplant,09/03/2012,NBA RECHARGES,Clinical,UNIVERSITY OF OXFORD,1584402,233733,Charges from third parties for Research & Development projects
Department of Health,NHS Blood and Transplant,09/03/2012,NBA RECHARGES,Clinical,UNIVERSITY OF CAMBRIDGE,1582306,544348,Charges from third parties for Research & Development projects
Department of Health,NHS Blood and Transplant,16/03/2012,DIRECT CONSUMABLES,Specialist Services,VH BIO LTD,1586602,636,Consumable items used primarily during normal day to day operations
Department of Health,NHS Blood and Transplant,16/03/2012,PATENTS,Clinical,MILLS & REEVE,1587116,26526.38,Costs incurred relating to patents
Department of Health,NHS Blood and Transplant,16/03/2012,PAGERS,Business Transformation Services,CABLE & WIRELESS COMMUNICATIONS MILTON KEYNES,1581646,50.34,Costs incurred relating to use of pagers
Department of Health,NHS Blood and Transplant,16/03/2012,IT COMMUNICATIONS LINKS,Blood Donation,BRITISH TELECOMMUNICATIONS PLC NEWCASTLE,1521465,3593.06,Costs of IT infrastructure communications links
Department of Health,NHS Blood and Transplant,16/03/2012,IT COMMUNICATIONS LINKS,Business Transformation Services,BRITISH TELECOMMUNICATIONS PLC NEWCASTLE,1521465,39668.12,Costs of IT infrastructure communications links
Department of Health,NHS Blood and Transplant,16/03/2012,IT COMMUNICATIONS LINKS,Business Transformation Services,CABLE & WIRELESS COMMUNICATIONS MILTON KEYNES,1581646,142904.24,Costs of IT infrastructure communications links
Department of Health,NHS Blood and Transplant,16/03/2012,IT COMMUNICATIONS LINKS,Chief Executives & Board,BRITISH TELECOMMUNICATIONS PLC NEWCASTLE,1521465,307.13,Costs of IT infrastructure communications links
Department of Health,NHS Blood and Transplant,16/03/2012,IT COMMUNICATIONS LINKS,Clinical,BRITISH TELECOMMUNICATIONS PLC NEWCASTLE,1521465,1056.04,Costs of IT infrastructure communications links
Department of Health,NHS Blood and Transplant,16/03/2012,IT COMMUNICATIONS LINKS,Estates & Logistics,BRITISH TELECOMMUNICATIONS PLC NEWCASTLE,1521465,345.59,Costs of IT infrastructure communications links
Department of Health,NHS Blood and Transplant,16/03/2012,IT COMMUNICATIONS LINKS,Estates & Logistics,CABLE & WIRELESS COMMUNICATIONS MILTON KEYNES,1581646,1734.54,Costs of IT infrastructure communications links
Department of Health,NHS Blood and Transplant,16/03/2012,IT COMMUNICATIONS LINKS,Finance,BRITISH TELECOMMUNICATIONS PLC NEWCASTLE,1521465,570.9,Costs of IT infrastructure communications links
Department of Health,NHS Blood and Transplant,16/03/2012,IT COMMUNICATIONS LINKS,Human Resources,BRITISH TELECOMMUNICATIONS PLC NEWCASTLE,1521465,903.2,Costs of IT infrastructure communications links
Department of Health,NHS Blood and Transplant,16/03/2012,IT COMMUNICATIONS LINKS,Organ Donation & Transplantation,BRITISH TELECOMMUNICATIONS PLC NEWCASTLE,1521465,183.96,Costs of IT infrastructure communications links
Department of Health,NHS Blood and Transplant,16/03/2012,IT COMMUNICATIONS LINKS,Patient Services,BRITISH TELECOMMUNICATIONS PLC NEWCASTLE,1521465,1204.18,Costs of IT infrastructure communications links
Department of Health,NHS Blood and Transplant,16/03/2012,IT COMMUNICATIONS LINKS,Specialist Services,BRITISH TELECOMMUNICATIONS PLC NEWCASTLE,1521465,652.91,Costs of IT infrastructure communications links
Department of Health,NHS Blood and Transplant,28/03/2012,EQUIPMENT MAINTENANCE CONTRACT,Patient Services,BIO-RAD LABORATORIES LTD,1593440,28000,Costs of maintenance contracts on equipment
Department of Health,NHS Blood and Transplant,16/03/2012,EQUIPMENT MAINTENANCE CONTRACT,Patient Services,FENWAL EUROPE,1586685,43360.2,Costs of maintenance contracts on equipment
Department of Health,NHS Blood and Transplant,23/03/2012,EQUIPMENT MAINTENANCE CONTRACT,Patient Services,RPS SERVICES LIMITED,1590640,45000,Costs of maintenance contracts on equipment
Department of Health,NHS Blood and Transplant,28/03/2012,EQUIPMENT MAINTENANCE CONTRACT,Patient Services,CONTRONICS LTD,1590853,66457,Costs of maintenance contracts on equipment
Department of Health,NHS Blood and Transplant,28/03/2012,AVERAGE COST VARIANCE,General and Other,TERUMO BCT EUROPE NV/SA,1572445,-1286.88,Difference between Purchase Order and Supplier Invoice price for Stores items
Department of Health,NHS Blood and Transplant,30/03/2012,AVERAGE COST VARIANCE,General and Other,PALL MEDICAL (PREV. PALL EUROPE LTD),1595458,-819.6,Difference between Purchase Order and Supplier Invoice price for Stores items
Department of Health,NHS Blood and Transplant,30/03/2012,AVERAGE COST VARIANCE,General and Other,PALL MEDICAL (PREV. PALL EUROPE LTD),1586709,-795.69,Difference between Purchase Order and Supplier Invoice price for Stores items
Department of Health,NHS Blood and Transplant,16/03/2012,AVERAGE COST VARIANCE,General and Other,PALL MEDICAL (PREV. PALL EUROPE LTD),1583654,-785.69,Difference between Purchase Order and Supplier Invoice price for Stores items
Department of Health,NHS Blood and Transplant,28/03/2012,AVERAGE COST VARIANCE,General and Other,PALL MEDICAL (PREV. PALL EUROPE LTD),1590287,-744.65,Difference between Purchase Order and Supplier Invoice price for Stores items
Department of Health,NHS Blood and Transplant,09/03/2012,AVERAGE COST VARIANCE,General and Other,PALL MEDICAL (PREV. PALL EUROPE LTD),1581484,-551.87,Difference between Purchase Order and Supplier Invoice price for Stores items
Department of Health,NHS Blood and Transplant,28/03/2012,AVERAGE COST VARIANCE,General and Other,PALL MEDICAL (PREV. PALL EUROPE LTD),1590360,-442.66,Difference between Purchase Order and Supplier Invoice price for Stores items
Department of Health,NHS Blood and Transplant,09/03/2012,AVERAGE COST VARIANCE,General and Other,PALL MEDICAL (PREV. PALL EUROPE LTD),1581401,-440.66,Difference between Purchase Order and Supplier Invoice price for Stores items
Department of Health,NHS Blood and Transplant,28/03/2012,AVERAGE COST VARIANCE,General and Other,PALL MEDICAL (PREV. PALL EUROPE LTD),1590288,-361.27,Difference between Purchase Order and Supplier Invoice price for Stores items
Department of Health,NHS Blood and Transplant,16/03/2012,AVERAGE COST VARIANCE,General and Other,PALL MEDICAL (PREV. PALL EUROPE LTD),1586723,-290.17,Difference between Purchase Order and Supplier Invoice price for Stores items
Department of Health,NHS Blood and Transplant,02/03/2012,AVERAGE COST VARIANCE,General and Other,PALL MEDICAL (PREV. PALL EUROPE LTD),1584406,-220.33,Difference between Purchase Order and Supplier Invoice price for Stores items
Department of Health,NHS Blood and Transplant,09/03/2012,AVERAGE COST VARIANCE,General and Other,PALL MEDICAL (PREV. PALL EUROPE LTD),1581662,-97.87,Difference between Purchase Order and Supplier Invoice price for Stores items
Department of Health,NHS Blood and Transplant,09/03/2012,AVERAGE COST VARIANCE,General and Other,PALL MEDICAL (PREV. PALL EUROPE LTD),1581421,-64.58,Difference between Purchase Order and Supplier Invoice price for Stores items
Department of Health,NHS Blood and Transplant,16/03/2012,AVERAGE COST VARIANCE,General and Other,PALL MEDICAL (PREV. PALL EUROPE LTD),1586717,-57.49,Difference between Purchase Order and Supplier Invoice price for Stores items
Department of Health,NHS Blood and Transplant,02/03/2012,AVERAGE COST VARIANCE,General and Other,PALL MEDICAL (PREV. PALL EUROPE LTD),1577015,-53.31,Difference between Purchase Order and Supplier Invoice price for Stores items
Department of Health,NHS Blood and Transplant,02/03/2012,AVERAGE COST VARIANCE,General and Other,EBSCO INFORMATION SERVICES,1583316,-51.92,Difference between Purchase Order and Supplier Invoice price for Stores items
Department of Health,NHS Blood and Transplant,09/03/2012,AVERAGE COST VARIANCE,General and Other,MACO PHARMA UK LTD,1583330,-38.22,Difference between Purchase Order and Supplier Invoice price for Stores items
Department of Health,NHS Blood and Transplant,28/03/2012,AVERAGE COST VARIANCE,General and Other,PALL MEDICAL (PREV. PALL EUROPE LTD),1590354,-28.45,Difference between Purchase Order and Supplier Invoice price for Stores items
Department of Health,NHS Blood and Transplant,28/03/2012,AVERAGE COST VARIANCE,General and Other,ABBOTT LABORATORIES LTD,1592371,-22.8,Difference between Purchase Order and Supplier Invoice price for Stores items
Department of Health,NHS Blood and Transplant,02/03/2012,AVERAGE COST VARIANCE,General and Other,PALL MEDICAL (PREV. PALL EUROPE LTD),1584410,-8.28,Difference between Purchase Order and Supplier Invoice price for Stores items
Department of Health,NHS Blood and Transplant,16/03/2012,AVERAGE COST VARIANCE,General and Other,CSA WAVERLEY LIMITED,1587945,-0.53,Difference between Purchase Order and Supplier Invoice price for Stores items
Department of Health,NHS Blood and Transplant,16/03/2012,AVERAGE COST VARIANCE,General and Other,TERUMO BCT EUROPE NV/SA (CARIDIAN),1586269,-0.08,Difference between Purchase Order and Supplier Invoice price for Stores items
Department of Health,NHS Blood and Transplant,28/03/2012,AVERAGE COST VARIANCE,General and Other,MITIE TECHNICAL FACILITIES MANAGEMENT,1589781,-0.06,Difference between Purchase Order and Supplier Invoice price for Stores items
Department of Health,NHS Blood and Transplant,09/03/2012,AVERAGE COST VARIANCE,General and Other,NORLAND MANAGED SERVICES,1584397,-0.05,Difference between Purchase Order and Supplier Invoice price for Stores items
Department of Health,NHS Blood and Transplant,28/03/2012,AVERAGE COST VARIANCE,General and Other,NORLAND MANAGED SERVICES,1592820,-0.05,Difference between Purchase Order and Supplier Invoice price for Stores items
Department of Health,NHS Blood and Transplant,30/03/2012,AVERAGE COST VARIANCE,General and Other,VH BIO LTD,1579331,-0.02,Difference between Purchase Order and Supplier Invoice price for Stores items
Department of Health,NHS Blood and Transplant,09/03/2012,AVERAGE COST VARIANCE,General and Other,NORLAND MANAGED SERVICES,1584396,-0.01,Difference between Purchase Order and Supplier Invoice price for Stores items
Department of Health,NHS Blood and Transplant,28/03/2012,AVERAGE COST VARIANCE,General and Other,NORLAND MANAGED SERVICES,1592845,-0.01,Difference between Purchase Order and Supplier Invoice price for Stores items
Department of Health,NHS Blood and Transplant,30/03/2012,AVERAGE COST VARIANCE,General and Other,STONE COMPUTERS LTD,1595186,-0.01,Difference between Purchase Order and Supplier Invoice price for Stores items
Department of Health,NHS Blood and Transplant,16/03/2012,AVERAGE COST VARIANCE,General and Other,CSA WAVERLEY LIMITED,1587941,0.01,Difference between Purchase Order and Supplier Invoice price for Stores items
Department of Health,NHS Blood and Transplant,28/03/2012,AVERAGE COST VARIANCE,General and Other,ORTHO CLINICAL DIAGNOSTICS,1587751,0.01,Difference between Purchase Order and Supplier Invoice price for Stores items
Department of Health,NHS Blood and Transplant,28/03/2012,AVERAGE COST VARIANCE,General and Other,ORTHO CLINICAL DIAGNOSTICS,1594268,0.01,Difference between Purchase Order and Supplier Invoice price for Stores items
Department of Health,NHS Blood and Transplant,02/03/2012,AVERAGE COST VARIANCE,General and Other,PALL MEDICAL (PREV. PALL EUROPE LTD),1584407,5.21,Difference between Purchase Order and Supplier Invoice price for Stores items
Department of Health,NHS Blood and Transplant,02/03/2012,AVERAGE COST VARIANCE,General and Other,VH BIO LTD,1579468,28.8,Difference between Purchase Order and Supplier Invoice price for Stores items
Department of Health,NHS Blood and Transplant,28/03/2012,AVERAGE COST VARIANCE,General and Other,MACO PHARMA UK LTD,1594142,91.25,Difference between Purchase Order and Supplier Invoice price for Stores items
Department of Health,NHS Blood and Transplant,16/03/2012,AVERAGE COST VARIANCE,General and Other,MACO PHARMA UK LTD,1584290,110.96,Difference between Purchase Order and Supplier Invoice price for Stores items
Department of Health,NHS Blood and Transplant,02/03/2012,AVERAGE COST VARIANCE,General and Other,MACO PHARMA UK LTD,1583307,135.83,Difference between Purchase Order and Supplier Invoice price for Stores items
Department of Health,NHS Blood and Transplant,09/03/2012,AVERAGE COST VARIANCE,General and Other,MACO PHARMA UK LTD,1583326,135.83,Difference between Purchase Order and Supplier Invoice price for Stores items
Department of Health,NHS Blood and Transplant,16/03/2012,AVERAGE COST VARIANCE,General and Other,BIOSAFE SA,1541636,136.89,Difference between Purchase Order and Supplier Invoice price for Stores items
Department of Health,NHS Blood and Transplant,16/03/2012,AVERAGE COST VARIANCE,General and Other,BIOSAFE SA,1575236,136.89,Difference between Purchase Order and Supplier Invoice price for Stores items
Department of Health,NHS Blood and Transplant,16/03/2012,AVERAGE COST VARIANCE,General and Other,MACO PHARMA UK LTD,1584300,149.18,Difference between Purchase Order and Supplier Invoice price for Stores items
Department of Health,NHS Blood and Transplant,28/03/2012,AVERAGE COST VARIANCE,General and Other,MACO PHARMA UK LTD,1591987,154.94,Difference between Purchase Order and Supplier Invoice price for Stores items
Department of Health,NHS Blood and Transplant,28/03/2012,AVERAGE COST VARIANCE,General and Other,MACO PHARMA UK LTD,1592020,174.05,Difference between Purchase Order and Supplier Invoice price for Stores items
Department of Health,NHS Blood and Transplant,16/03/2012,AVERAGE COST VARIANCE,General and Other,BIOSAFE SA,1546159,273.78,Difference between Purchase Order and Supplier Invoice price for Stores items
Department of Health,NHS Blood and Transplant,28/03/2012,AVERAGE COST VARIANCE,General and Other,PALL MEDICAL (PREV. PALL EUROPE LTD),1590281,305.25,Difference between Purchase Order and Supplier Invoice price for Stores items
Department of Health,NHS Blood and Transplant,30/03/2012,AVERAGE COST VARIANCE,General and Other,REGENT CLEANING SERVICES,1594800,1898.08,Difference between Purchase Order and Supplier Invoice price for Stores items
Department of Health,NHS Blood and Transplant,09/03/2012,AVERAGE COST VARIANCE,General and Other,PALL MEDICAL (PREV. PALL EUROPE LTD),1581462,2415.27,Difference between Purchase Order and Supplier Invoice price for Stores items
Department of Health,NHS Blood and Transplant,16/03/2012,AVERAGE COST VARIANCE,General and Other,TRUSTMARQUE SOLUTIONS,1585420,21600,Difference between Purchase Order and Supplier Invoice price for Stores items
Department of Health,NHS Blood and Transplant,28/03/2012,AVERAGE COST VARIANCE,General and Other,REGENT CLEANING SERVICES,1553489,32162.07,Difference between Purchase Order and Supplier Invoice price for Stores items
Department of Health,NHS Blood and Transplant,16/03/2012,ELECTRICITY,Estates & Logistics,SOUTHERN ELECTRIC CONTRACTING,1587167,29421.24,Electricity costs
Department of Health,NHS Blood and Transplant,16/03/2012,ELECTRICITY,Estates & Logistics,SOUTHERN ELECTRIC CONTRACTING,1588077,55127.19,Electricity costs
Department of Health,NHS Blood and Transplant,30/03/2012,CLEANING CONTRACT,General and Other,REGENT CLEANING SERVICES,1589929,28394.7,External claening contracts
Department of Health,NHS Blood and Transplant,28/03/2012,CLEANING CONTRACT,Estates & Logistics,REGENT CLEANING SERVICES,1553489,-278.04,External claening contracts
Department of Health,NHS Blood and Transplant,30/03/2012,CLEANING CONTRACT,Estates & Logistics,REGENT CLEANING SERVICES,1589929,3741.4,External claening contracts
Department of Health,NHS Blood and Transplant,30/03/2012,CLEANING CONTRACT,Estates & Logistics,REGENT CLEANING SERVICES,1594800,30252.25,External claening contracts
Department of Health,NHS Blood and Transplant,09/03/2012,CLEANING CONTRACT,Estates & Logistics,REGENT CLEANING SERVICES,1573567,32674.32,External claening contracts
Department of Health,NHS Blood and Transplant,28/03/2012,WASTE DISPOSAL - CLINICAL,Estates & Logistics,SRCL LTD,1589388,22332.02,External Contract for disposal of clinical waste
Department of Health,NHS Blood and Transplant,28/03/2012,WASTE DISPOSAL - CLINICAL,Estates & Logistics,SRCL LTD,1589407,26276.89,External Contract for disposal of clinical waste
Department of Health,NHS Blood and Transplant,28/03/2012,WASTE DISPOSAL - CLINICAL,Estates & Logistics,SRCL LTD,1593475,27759.43,External Contract for disposal of clinical waste
Department of Health,NHS Blood and Transplant,28/03/2012,WASTE DISPOSAL - CLINICAL,Estates & Logistics,SRCL LTD,1593465,29028.88,External Contract for disposal of clinical waste
Department of Health,NHS Blood and Transplant,02/03/2012,VEHICLE REPAIRS & MAINTENANCE,Estates & Logistics,FRAIKIN LTD,1579717,25426.23,External contract for fleet vehicle repairs amd maintenance
Department of Health,NHS Blood and Transplant,28/03/2012,VEHICLE REPAIRS & MAINTENANCE,Estates & Logistics,FRAIKIN LTD,1588902,44132.94,External contract for fleet vehicle repairs amd maintenance
Department of Health,NHS Blood and Transplant,28/03/2012,VEHICLE REPAIRS & MAINTENANCE,Estates & Logistics,LEASEPLAN UK LTD,1594220,59838.8,External contract for fleet vehicle repairs amd maintenance
Department of Health,NHS Blood and Transplant,02/03/2012,VEHICLE REPAIRS & MAINTENANCE,Estates & Logistics,LEASEPLAN UK LTD,1583350,78848.14,External contract for fleet vehicle repairs amd maintenance
Department of Health,NHS Blood and Transplant,30/03/2012,OCCUPATIONAL HEALTH COSTS,Human Resources,ATOS IT SERVICES UK LTD,1584028,-283976.74,External cost of occupational health services contract
Department of Health,NHS Blood and Transplant,30/03/2012,OCCUPATIONAL HEALTH COSTS,Human Resources,ATOS IT SERVICES UK LTD,1584030,-47166.5,External cost of occupational health services contract
Department of Health,NHS Blood and Transplant,30/03/2012,OCCUPATIONAL HEALTH COSTS,Human Resources,ATOS IT SERVICES UK LTD,1595384,47166.5,External cost of occupational health services contract
Department of Health,NHS Blood and Transplant,30/03/2012,OCCUPATIONAL HEALTH COSTS,Human Resources,ATOS IT SERVICES UK LTD,1595381,284102.41,External cost of occupational health services contract
Department of Health,NHS Blood and Transplant,23/03/2012,EXTERNAL MAILING SERVICES,Blood Donation,STRALFORS,1590985,63136.03,"External costs of mailing services, primarily relating to communications with donors"
Department of Health,NHS Blood and Transplant,23/03/2012,EXTERNAL MAILING SERVICES,Blood Donation,MM TELEPERFORMANCE LTD,1587368,81769.95,"External costs of mailing services, primarily relating to communications with donors"
Department of Health,NHS Blood and Transplant,23/03/2012,EXTERNAL MARKETING SERVICES,Blood Donation,MM TELEPERFORMANCE LTD,1591269,215964.16,"External costs of marketing services, primarily relating to communications with donors"
Department of Health,NHS Blood and Transplant,02/03/2012,EXTERNAL MARKETING SERVICES,Blood Donation,MM TELEPERFORMANCE LTD,1580989,244710.77,"External costs of marketing services, primarily relating to communications with donors"
Department of Health,NHS Blood and Transplant,09/03/2012,EXTERNAL SERVICES OTHER,Clinical,HEALTH PROTECTION AGENCY (PHLS),1581535,149986,External costs of providing other services
Department of Health,NHS Blood and Transplant,28/03/2012,EXTERNAL SERVICES OTHER,Clinical,UNIVERSITY OF CAMBRIDGE,1593801,733308,External costs of providing other services
Department of Health,NHS Blood and Transplant,16/03/2012,EXTERNAL SERVICES OTHER,General and Other,ORTHO CLINICAL DIAGNOSTICS,1585462,25066,External costs of providing other services
Department of Health,NHS Blood and Transplant,28/03/2012,EXTERNAL SERVICES OTHER,Finance,BRAVO SOLUTIONS UK LIMITED,1591195,45000,External costs of providing other services
Department of Health,NHS Blood and Transplant,02/03/2012,COURIER & DELIVERY CHARGES,Estates & Logistics,TNT EXPRESS UK LTD,1584630,38253.92,External courier and transport company costs
Department of Health,NHS Blood and Transplant,23/03/2012,COURIER & DELIVERY CHARGES,Estates & Logistics,TNT EXPRESS UK LTD,1590971,38328.53,External courier and transport company costs
Department of Health,NHS Blood and Transplant,30/03/2012,COURIER & DELIVERY CHARGES,Estates & Logistics,TNT EXPRESS UK LTD,1595007,38505.14,External courier and transport company costs
Department of Health,NHS Blood and Transplant,02/03/2012,COURIER & DELIVERY CHARGES,Estates & Logistics,TNT EXPRESS UK LTD,1584604,39176.99,External courier and transport company costs
Department of Health,NHS Blood and Transplant,02/03/2012,COURIER & DELIVERY CHARGES,Estates & Logistics,TNT EXPRESS UK LTD,1583418,39437.86,External courier and transport company costs
Department of Health,NHS Blood and Transplant,23/03/2012,COURIER & DELIVERY CHARGES,Estates & Logistics,TNT EXPRESS UK LTD,1590973,40206.14,External courier and transport company costs
Department of Health,NHS Blood and Transplant,02/03/2012,COURIER & DELIVERY CHARGES,Estates & Logistics,TNT EXPRESS UK LTD,1585262,41520.41,External courier and transport company costs
Department of Health,NHS Blood and Transplant,28/03/2012,COURIER & DELIVERY CHARGES,Estates & Logistics,TNT EXPRESS UK LTD,1592234,44167.49,External courier and transport company costs
Department of Health,NHS Blood and Transplant,28/03/2012,TEST KITS HEPB,Patient Services,ORTHO CLINICAL DIAGNOSTICS,1587751,5702.9,For testing of donations and samples for specific markers
Department of Health,NHS Blood and Transplant,28/03/2012,TEST KITS HEPB,Patient Services,ABBOTT LABORATORIES LTD,1592371,20094.15,For testing of donations and samples for specific markers
Department of Health,NHS Blood and Transplant,28/03/2012,TEST KITS HEPB,Patient Services,ABBOTT LABORATORIES LTD,1592368,22266.56,For testing of donations and samples for specific markers
Department of Health,NHS Blood and Transplant,28/03/2012,TEST KITS HEPC,Patient Services,ORTHO CLINICAL DIAGNOSTICS,1587751,15923.96,For testing of donations and samples for specific markers
Department of Health,NHS Blood and Transplant,28/03/2012,TEST KITS HEPC,Patient Services,ABBOTT LABORATORIES LTD,1592371,136222.34,For testing of donations and samples for specific markers
Department of Health,NHS Blood and Transplant,28/03/2012,TEST KITS HEPC,Patient Services,ABBOTT LABORATORIES LTD,1592368,156608.96,For testing of donations and samples for specific markers
Department of Health,NHS Blood and Transplant,28/03/2012,TEST KITS HIV,Patient Services,ABBOTT LABORATORIES LTD,1592371,31933.36,For testing of donations and samples for specific markers
Department of Health,NHS Blood and Transplant,28/03/2012,TEST KITS HIV,Patient Services,ABBOTT LABORATORIES LTD,1592368,32657.76,For testing of donations and samples for specific markers
Department of Health,NHS Blood and Transplant,28/03/2012,TEST KITS TPHA,Patient Services,ORTHO CLINICAL DIAGNOSTICS,1587751,5613.84,For testing of donations and samples for specific markers
Department of Health,NHS Blood and Transplant,02/03/2012,TEST KITS TPHA,Patient Services,MAST GROUP LTD,1579567,26057.59,For testing of donations and samples for specific markers
Department of Health,NHS Blood and Transplant,28/03/2012,TEST KITS TPHA,Patient Services,MAST GROUP LTD,1587681,33608.16,For testing of donations and samples for specific markers
Department of Health,NHS Blood and Transplant,28/03/2012,TEST KITS OTHER,Specialist Services,QUEST BIOMEDICAL LIMITED,1588885,28229.76,For testing of donations and samples for specific markers
Department of Health,NHS Blood and Transplant,02/03/2012,TEST KITS OTHER,Specialist Services,VH BIO LTD,1579468,28440,For testing of donations and samples for specific markers
Department of Health,NHS Blood and Transplant,16/03/2012,TEST KITS OTHER,Specialist Services,VH BIO LTD,1586602,33516,For testing of donations and samples for specific markers
Department of Health,NHS Blood and Transplant,16/03/2012,TEST KITS OTHER,Specialist Services,QUEST BIOMEDICAL LIMITED,1588889,39216,For testing of donations and samples for specific markers
Department of Health,NHS Blood and Transplant,30/03/2012,TEST KITS OTHER,Specialist Services,VH BIO LTD,1579331,72522.02,For testing of donations and samples for specific markers
Department of Health,NHS Blood and Transplant,23/03/2012,TEST KITS OTHER,Specialist Services,VH BIO LTD,1571416,95760,For testing of donations and samples for specific markers
Department of Health,NHS Blood and Transplant,09/03/2012,IMPORTS FRESH FROZEN PLASMA,Patient Services,MACO PHARMA UK LTD,1582366,79200,Imports of Fresh Frozen Plasma
Department of Health,NHS Blood and Transplant,16/03/2012,IMPORTS FRESH FROZEN PLASMA,Patient Services,MACO PHARMA UK LTD,1583294,79200,Imports of Fresh Frozen Plasma
Department of Health,NHS Blood and Transplant,28/03/2012,IMPORTS FRESH FROZEN PLASMA,Patient Services,MACO PHARMA UK LTD,1592023,79200,Imports of Fresh Frozen Plasma
Department of Health,NHS Blood and Transplant,28/03/2012,IMPORTS FRESH FROZEN PLASMA,Patient Services,MACO PHARMA UK LTD,1592844,79200,Imports of Fresh Frozen Plasma
Department of Health,NHS Blood and Transplant,28/03/2012,INVENTORY MATERIALS,NBS and ODT All Areas,PALL MEDICAL (PREV. PALL EUROPE LTD),1590281,24964.35,Items purchased for warehouses (and subsequent issue to operational departments)
Department of Health,NHS Blood and Transplant,16/03/2012,INVENTORY MATERIALS,NBS and ODT All Areas,BIOSAFE SA,1541636,25206.39,Items purchased for warehouses (and subsequent issue to operational departments)
Department of Health,NHS Blood and Transplant,16/03/2012,INVENTORY MATERIALS,NBS and ODT All Areas,BIOSAFE SA,1575236,25206.39,Items purchased for warehouses (and subsequent issue to operational departments)
Department of Health,NHS Blood and Transplant,09/03/2012,INVENTORY MATERIALS,NBS and ODT All Areas,MACO PHARMA UK LTD,1583319,25724.16,Items purchased for warehouses (and subsequent issue to operational departments)
Department of Health,NHS Blood and Transplant,30/03/2012,INVENTORY MATERIALS,NBS and ODT All Areas,MACO PHARMA UK LTD,1594386,25724.16,Items purchased for warehouses (and subsequent issue to operational departments)
Department of Health,NHS Blood and Transplant,30/03/2012,INVENTORY MATERIALS,NBS and ODT All Areas,MACO PHARMA UK LTD,1594395,25724.16,Items purchased for warehouses (and subsequent issue to operational departments)
Department of Health,NHS Blood and Transplant,28/03/2012,INVENTORY MATERIALS,NBS and ODT All Areas,TERUMO BCT EUROPE NV/SA,1591536,25920,Items purchased for warehouses (and subsequent issue to operational departments)
Department of Health,NHS Blood and Transplant,28/03/2012,INVENTORY MATERIALS,NBS and ODT All Areas,TERUMO BCT EUROPE NV/SA,1593695,26406.72,Items purchased for warehouses (and subsequent issue to operational departments)
Department of Health,NHS Blood and Transplant,16/03/2012,INVENTORY MATERIALS,NBS and ODT All Areas,TERUMO BCT EUROPE NV/SA (CARIDIAN),1588625,26893.44,Items purchased for warehouses (and subsequent issue to operational departments)
Department of Health,NHS Blood and Transplant,02/03/2012,INVENTORY MATERIALS,NBS and ODT All Areas,PALL MEDICAL (PREV. PALL EUROPE LTD),1584406,27355.69,Items purchased for warehouses (and subsequent issue to operational departments)
Department of Health,NHS Blood and Transplant,16/03/2012,INVENTORY MATERIALS,NBS and ODT All Areas,PALL MEDICAL (PREV. PALL EUROPE LTD),1583654,27598.49,Items purchased for warehouses (and subsequent issue to operational departments)
Department of Health,NHS Blood and Transplant,16/03/2012,INVENTORY MATERIALS,NBS and ODT All Areas,MACO PHARMA UK LTD,1584300,30139.2,Items purchased for warehouses (and subsequent issue to operational departments)
Department of Health,NHS Blood and Transplant,28/03/2012,INVENTORY MATERIALS,NBS and ODT All Areas,MACO PHARMA UK LTD,1594142,34163.47,Items purchased for warehouses (and subsequent issue to operational departments)
Department of Health,NHS Blood and Transplant,09/03/2012,INVENTORY MATERIALS,NBS and ODT All Areas,CARIDIAN BCT EUROPE NV/SA,1581614,34560,Items purchased for warehouses (and subsequent issue to operational departments)
Department of Health,NHS Blood and Transplant,16/03/2012,INVENTORY MATERIALS,NBS and ODT All Areas,TERUMO BCT EUROPE NV/SA (CARIDIAN),1585724,34560,Items purchased for warehouses (and subsequent issue to operational departments)
Department of Health,NHS Blood and Transplant,28/03/2012,INVENTORY MATERIALS,NBS and ODT All Areas,TERUMO BCT EUROPE NV/SA,1590881,34560,Items purchased for warehouses (and subsequent issue to operational departments)
Department of Health,NHS Blood and Transplant,28/03/2012,INVENTORY MATERIALS,NBS and ODT All Areas,MACO PHARMA UK LTD,1594146,35336.45,Items purchased for warehouses (and subsequent issue to operational departments)
Department of Health,NHS Blood and Transplant,02/03/2012,INVENTORY MATERIALS,NBS and ODT All Areas,PALL MEDICAL (PREV. PALL EUROPE LTD),1584410,37125.58,Items purchased for warehouses (and subsequent issue to operational departments)
Department of Health,NHS Blood and Transplant,16/03/2012,INVENTORY MATERIALS,NBS and ODT All Areas,MACO PHARMA UK LTD,1584292,40384.51,Items purchased for warehouses (and subsequent issue to operational departments)
Department of Health,NHS Blood and Transplant,16/03/2012,INVENTORY MATERIALS,NBS and ODT All Areas,MACO PHARMA UK LTD,1584290,40660.62,Items purchased for warehouses (and subsequent issue to operational departments)
Department of Health,NHS Blood and Transplant,09/03/2012,INVENTORY MATERIALS,NBS and ODT All Areas,PALL MEDICAL (PREV. PALL EUROPE LTD),1581421,42596.23,Items purchased for warehouses (and subsequent issue to operational departments)
Department of Health,NHS Blood and Transplant,09/03/2012,INVENTORY MATERIALS,NBS and ODT All Areas,JOHNSON & JOHNSON MEDICAL LTD (THERAKOS),1582173,42696,Items purchased for warehouses (and subsequent issue to operational departments)
Department of Health,NHS Blood and Transplant,28/03/2012,INVENTORY MATERIALS,NBS and ODT All Areas,JOHNSON & JOHNSON MEDICAL LTD (THERAKOS),1589048,42696,Items purchased for warehouses (and subsequent issue to operational departments)
Department of Health,NHS Blood and Transplant,28/03/2012,INVENTORY MATERIALS,NBS and ODT All Areas,JOHNSON & JOHNSON MEDICAL LTD (THERAKOS),1593426,42696,Items purchased for warehouses (and subsequent issue to operational departments)
Department of Health,NHS Blood and Transplant,16/03/2012,INVENTORY MATERIALS,NBS and ODT All Areas,TERUMO BCT EUROPE NV/SA (CARIDIAN),1584339,43200,Items purchased for warehouses (and subsequent issue to operational departments)
Department of Health,NHS Blood and Transplant,28/03/2012,INVENTORY MATERIALS,NBS and ODT All Areas,TERUMO BCT EUROPE NV/SA,1593739,43200,Items purchased for warehouses (and subsequent issue to operational departments)
Department of Health,NHS Blood and Transplant,02/03/2012,INVENTORY MATERIALS,NBS and ODT All Areas,TERUMO,1579392,43948.8,Items purchased for warehouses (and subsequent issue to operational departments)
Department of Health,NHS Blood and Transplant,28/03/2012,INVENTORY MATERIALS,NBS and ODT All Areas,TERUMO UK,1591620,43948.8,Items purchased for warehouses (and subsequent issue to operational departments)
Department of Health,NHS Blood and Transplant,02/03/2012,INVENTORY MATERIALS,NBS and ODT All Areas,CARIDIAN BCT EUROPE NV/SA,1579819,44822.4,Items purchased for warehouses (and subsequent issue to operational departments)
Department of Health,NHS Blood and Transplant,02/03/2012,INVENTORY MATERIALS,NBS and ODT All Areas,MACO PHARMA UK LTD,1583307,45683.82,Items purchased for warehouses (and subsequent issue to operational departments)
Department of Health,NHS Blood and Transplant,09/03/2012,INVENTORY MATERIALS,NBS and ODT All Areas,MACO PHARMA UK LTD,1583326,45683.82,Items purchased for warehouses (and subsequent issue to operational departments)
Department of Health,NHS Blood and Transplant,02/03/2012,INVENTORY MATERIALS,NBS and ODT All Areas,PALL MEDICAL (PREV. PALL EUROPE LTD),1584407,47481.67,Items purchased for warehouses (and subsequent issue to operational departments)
Department of Health,NHS Blood and Transplant,16/03/2012,INVENTORY MATERIALS,NBS and ODT All Areas,BIOSAFE SA,1546159,50412.78,Items purchased for warehouses (and subsequent issue to operational departments)
Department of Health,NHS Blood and Transplant,28/03/2012,INVENTORY MATERIALS,NBS and ODT All Areas,MACO PHARMA UK LTD,1592020,50887.2,Items purchased for warehouses (and subsequent issue to operational departments)
Department of Health,NHS Blood and Transplant,28/03/2012,INVENTORY MATERIALS,NBS and ODT All Areas,MACO PHARMA UK LTD,1591987,50906.31,Items purchased for warehouses (and subsequent issue to operational departments)
Department of Health,NHS Blood and Transplant,28/03/2012,INVENTORY MATERIALS,NBS and ODT All Areas,PALL MEDICAL (PREV. PALL EUROPE LTD),1590288,51643.99,Items purchased for warehouses (and subsequent issue to operational departments)
Department of Health,NHS Blood and Transplant,02/03/2012,INVENTORY MATERIALS,NBS and ODT All Areas,CARIDIAN BCT EUROPE NV/SA,1579822,51840,Items purchased for warehouses (and subsequent issue to operational departments)
Department of Health,NHS Blood and Transplant,30/03/2012,INVENTORY MATERIALS,NBS and ODT All Areas,TERUMO BCT EUROPE NV/SA,1594786,51840,Items purchased for warehouses (and subsequent issue to operational departments)
Department of Health,NHS Blood and Transplant,16/03/2012,INVENTORY MATERIALS,NBS and ODT All Areas,TERUMO BCT EUROPE NV/SA (CARIDIAN),1586269,53786.88,Items purchased for warehouses (and subsequent issue to operational departments)
Department of Health,NHS Blood and Transplant,09/03/2012,INVENTORY MATERIALS,NBS and ODT All Areas,PALL MEDICAL (PREV. PALL EUROPE LTD),1581401,54711.38,Items purchased for warehouses (and subsequent issue to operational departments)
Department of Health,NHS Blood and Transplant,28/03/2012,INVENTORY MATERIALS,NBS and ODT All Areas,PALL MEDICAL (PREV. PALL EUROPE LTD),1590360,55258.42,Items purchased for warehouses (and subsequent issue to operational departments)
Department of Health,NHS Blood and Transplant,02/03/2012,INVENTORY MATERIALS,NBS and ODT All Areas,PALL MEDICAL (PREV. PALL EUROPE LTD),1577015,56020.83,Items purchased for warehouses (and subsequent issue to operational departments)
Department of Health,NHS Blood and Transplant,16/03/2012,INVENTORY MATERIALS,NBS and ODT All Areas,PALL MEDICAL (PREV. PALL EUROPE LTD),1586723,56093.05,Items purchased for warehouses (and subsequent issue to operational departments)
Department of Health,NHS Blood and Transplant,09/03/2012,INVENTORY MATERIALS,NBS and ODT All Areas,PALL MEDICAL (PREV. PALL EUROPE LTD),1581462,59454.09,Items purchased for warehouses (and subsequent issue to operational departments)
Department of Health,NHS Blood and Transplant,09/03/2012,INVENTORY MATERIALS,NBS and ODT All Areas,CARIDIAN BCT EUROPE NV/SA,1581838,60480,Items purchased for warehouses (and subsequent issue to operational departments)
Department of Health,NHS Blood and Transplant,16/03/2012,INVENTORY MATERIALS,NBS and ODT All Areas,TERUMO BCT EUROPE NV/SA (CARIDIAN),1585725,60480,Items purchased for warehouses (and subsequent issue to operational departments)
Department of Health,NHS Blood and Transplant,28/03/2012,INVENTORY MATERIALS,NBS and ODT All Areas,TERUMO BCT EUROPE NV/SA,1592874,60480,Items purchased for warehouses (and subsequent issue to operational departments)
Department of Health,NHS Blood and Transplant,09/03/2012,INVENTORY MATERIALS,NBS and ODT All Areas,MACO PHARMA UK LTD,1583330,61002.06,Items purchased for warehouses (and subsequent issue to operational departments)
Department of Health,NHS Blood and Transplant,02/03/2012,INVENTORY MATERIALS,NBS and ODT All Areas,CARIDIAN BCT EUROPE NV/SA,1580090,62426.88,Items purchased for warehouses (and subsequent issue to operational departments)
Department of Health,NHS Blood and Transplant,09/03/2012,INVENTORY MATERIALS,NBS and ODT All Areas,PALL MEDICAL (PREV. PALL EUROPE LTD),1581484,63521.63,Items purchased for warehouses (and subsequent issue to operational departments)
Department of Health,NHS Blood and Transplant,28/03/2012,INVENTORY MATERIALS,NBS and ODT All Areas,TERUMO BCT EUROPE NV/SA,1572445,63713.76,Items purchased for warehouses (and subsequent issue to operational departments)
Department of Health,NHS Blood and Transplant,28/03/2012,INVENTORY MATERIALS,NBS and ODT All Areas,PALL MEDICAL (PREV. PALL EUROPE LTD),1590287,68389.23,Items purchased for warehouses (and subsequent issue to operational departments)
Department of Health,NHS Blood and Transplant,02/03/2012,INVENTORY MATERIALS,NBS and ODT All Areas,CARIDIAN BCT EUROPE NV/SA,1580088,70417.92,Items purchased for warehouses (and subsequent issue to operational departments)
Department of Health,NHS Blood and Transplant,30/03/2012,INVENTORY MATERIALS,NBS and ODT All Areas,PALL MEDICAL (PREV. PALL EUROPE LTD),1586709,70647.02,Items purchased for warehouses (and subsequent issue to operational departments)
Department of Health,NHS Blood and Transplant,28/03/2012,INVENTORY MATERIALS,NBS and ODT All Areas,TERUMO BCT EUROPE NV/SA,1588829,77760,Items purchased for warehouses (and subsequent issue to operational departments)
Department of Health,NHS Blood and Transplant,16/03/2012,INVENTORY MATERIALS,NBS and ODT All Areas,PALL MEDICAL (PREV. PALL EUROPE LTD),1586717,86228.53,Items purchased for warehouses (and subsequent issue to operational departments)
Department of Health,NHS Blood and Transplant,30/03/2012,INVENTORY MATERIALS,NBS and ODT All Areas,PALL MEDICAL (PREV. PALL EUROPE LTD),1595458,86882.64,Items purchased for warehouses (and subsequent issue to operational departments)
Department of Health,NHS Blood and Transplant,09/03/2012,INVENTORY MATERIALS,NBS and ODT All Areas,CARIDIAN BCT EUROPE NV/SA,1581840,88833.6,Items purchased for warehouses (and subsequent issue to operational departments)
Department of Health,NHS Blood and Transplant,28/03/2012,INVENTORY MATERIALS,NBS and ODT All Areas,PALL MEDICAL (PREV. PALL EUROPE LTD),1590354,141987.25,Items purchased for warehouses (and subsequent issue to operational departments)
Department of Health,NHS Blood and Transplant,09/03/2012,INVENTORY MATERIALS,NBS and ODT All Areas,PALL MEDICAL (PREV. PALL EUROPE LTD),1581662,145447.44,Items purchased for warehouses (and subsequent issue to operational departments)
Department of Health,NHS Blood and Transplant,16/03/2012,LEGAL FEES,Clinical,MILLS & REEVE,1587116,1099.05,Legal fees incurred
Department of Health,NHS Blood and Transplant,05/03/2012,LOSSES & COMPENSATION,Human Resources,MANUAL PAYMENTS,1585853,40000,Losses and compensation costs arising from claims
Department of Health,NHS Blood and Transplant,16/03/2012,IT HARDWARE MAINTENANCE,Business Transformation Services,CABLE & WIRELESS COMMUNICATIONS MILTON KEYNES,1581646,15184.27,Maintenance costs of IT hardware
Department of Health,NHS Blood and Transplant,30/03/2012,IT HARDWARE MAINTENANCE,Business Transformation Services,E-TEC POWER MANAGEMENT,1594935,29089.96,Maintenance costs of IT hardware
Department of Health,NHS Blood and Transplant,28/03/2012,IT HARDWARE MAINTENANCE,Business Transformation Services,SAVANT LIMITED,1593759,29271.75,Maintenance costs of IT hardware
Department of Health,NHS Blood and Transplant,28/03/2012,IT HARDWARE MAINTENANCE,Business Transformation Services,COMPUTACENTER  UK LTD,1588430,38689,Maintenance costs of IT hardware
Department of Health,NHS Blood and Transplant,16/03/2012,IT SOFTWARE MAINTENANCE,Business Transformation Services,CABLE & WIRELESS COMMUNICATIONS MILTON KEYNES,1581646,939.16,Maintenance costs of IT software
Department of Health,NHS Blood and Transplant,30/03/2012,IT SOFTWARE MAINTENANCE,Business Transformation Services,SOFTCAT LTD,1595115,18000,Maintenance costs of IT software
Department of Health,NHS Blood and Transplant,28/03/2012,IT SOFTWARE MAINTENANCE,Business Transformation Services,TRUSTMARQUE SOLUTIONS,1591648,29692.02,Maintenance costs of IT software
Department of Health,NHS Blood and Transplant,28/03/2012,IT SOFTWARE MAINTENANCE,Business Transformation Services,SAVANT LIMITED,1593744,49953.07,Maintenance costs of IT software
Department of Health,NHS Blood and Transplant,28/03/2012,IT SOFTWARE MAINTENANCE,Business Transformation Services,SAVANT LIMITED,1593747,56598.22,Maintenance costs of IT software
Department of Health,NHS Blood and Transplant,28/03/2012,IT SOFTWARE MAINTENANCE,Business Transformation Services,SAVANT LIMITED,1593759,281623.89,Maintenance costs of IT software
Department of Health,NHS Blood and Transplant,28/03/2012,IT SOFTWARE MAINTENANCE,Finance,AURIGA BUSINESS SOLUTIONS LTD,1588791,31314,Maintenance costs of IT software
Department of Health,NHS Blood and Transplant,28/03/2012,IT SOFTWARE MAINTENANCE,Patient Services,ORTHO CLINICAL DIAGNOSTICS,1594268,76677.3,Maintenance costs of IT software
Department of Health,NHS Blood and Transplant,28/03/2012,MANAGEMENT CONSULTANTS,Business Transformation Services,GARTNER UK LTD,1591251,101000,Management consultancy fees - annual subscription to Gartner workgroup
Department of Health,NHS Blood and Transplant,16/03/2012,MANAGEMENT CONSULTANTS,General and Other,MCKINSEY & COMPANY INC,1585424,83000,Management consultancy fees - review of Blood Donation Optimisation project
Department of Health,NHS Blood and Transplant,30/03/2012,PREMISES MAINTENANCE - MINOR WORKS,Estates & Logistics,STANNAH LIFT SERVICES,1589958,21198,Minor works projects costs
Department of Health,NHS Blood and Transplant,30/03/2012,PREMISES MAINTENANCE - MINOR WORKS,Estates & Logistics,HOPKINS YOUNG ELECTRICAL LTD,1594871,26739.49,Minor works projects costs
Department of Health,NHS Blood and Transplant,30/03/2012,PREMISES MAINTENANCE - MINOR WORKS,Estates & Logistics,HOPKINS YOUNG ELECTRICAL LTD,1595199,26833.5,Minor works projects costs
Department of Health,NHS Blood and Transplant,30/03/2012,PREMISES MAINTENANCE - MINOR WORKS,Estates & Logistics,INTERSERVE  CONSTRUCTION LTD,1595424,27361.36,Minor works projects costs
Department of Health,NHS Blood and Transplant,30/03/2012,PREMISES MAINTENANCE - MINOR WORKS,Estates & Logistics,MCCARRICK CONSTRUCTION COMPANY LTD,1594787,29571,Minor works projects costs
Department of Health,NHS Blood and Transplant,16/03/2012,PREMISES MAINTENANCE - MINOR WORKS,Estates & Logistics,MIDSHIRE DECOR LIMITED,1586530,29994,Minor works projects costs
Department of Health,NHS Blood and Transplant,02/03/2012,PREMISES MAINTENANCE - MINOR WORKS,Estates & Logistics,SCION TECHNICAL SERVICES LTD.,1583351,30317.35,Minor works projects costs
Department of Health,NHS Blood and Transplant,30/03/2012,PREMISES MAINTENANCE - MINOR WORKS,Estates & Logistics,LOCKHART CATERING EQUIPMENT LTD,1595064,35061.6,Minor works projects costs
Department of Health,NHS Blood and Transplant,28/03/2012,PREMISES MAINTENANCE - MINOR WORKS,Estates & Logistics,INTERSERVE  CONSTRUCTION LTD,1591810,50296.15,Minor works projects costs
Department of Health,NHS Blood and Transplant,28/03/2012,PREMISES MAINTENANCE - MINOR WORKS,Estates & Logistics,INTERSERVE  CONSTRUCTION LTD,1590700,59744.26,Minor works projects costs
Department of Health,NHS Blood and Transplant,28/03/2012,PREMISES MAINTENANCE - MINOR WORKS,Estates & Logistics,SCION TECHNICAL SERVICES LTD.,1590994,61887.43,Minor works projects costs
Department of Health,NHS Blood and Transplant,28/03/2012,PREMISES MAINTENANCE - MINOR WORKS,Estates & Logistics,INTERSERVE  CONSTRUCTION LTD,1593566,71862.31,Minor works projects costs
Department of Health,NHS Blood and Transplant,09/03/2012,PREMISES MAINTENANCE - MINOR WORKS,Estates & Logistics,INTERSERVE  CONSTRUCTION LTD,1583875,86528.98,Minor works projects costs
Department of Health,NHS Blood and Transplant,28/03/2012,PREMISES MAINTENANCE - MINOR WORKS,Estates & Logistics,INTERSERVE  CONSTRUCTION LTD,1590701,100371.91,Minor works projects costs
Department of Health,NHS Blood and Transplant,28/03/2012,PREMISES MAINTENANCE - MINOR WORKS,Estates & Logistics,INTERSERVE  CONSTRUCTION LTD,1592236,142618.01,Minor works projects costs
Department of Health,NHS Blood and Transplant,16/03/2012,PREMISES MAINTENANCE - MINOR WORKS,Estates & Logistics,INTERSERVE  CONSTRUCTION LTD,1581659,215851.51,Minor works projects costs
Department of Health,NHS Blood and Transplant,16/03/2012,PREMISES MAINTENANCE - MINOR WORKS,Patient Services,INTERSERVE  CONSTRUCTION LTD,1583877,199469.03,Minor works projects costs
Department of Health,NHS Blood and Transplant,16/03/2012,MOBILE TELEPHONES,Business Transformation Services,CABLE & WIRELESS COMMUNICATIONS MILTON KEYNES,1581646,47202.07,Mobile telephone costs
Department of Health,NHS Blood and Transplant,16/03/2012,OTHER PROFESSIONAL FEES,Business Transformation Services,TRUSTMARQUE SOLUTIONS,1585420,474380.11,Other professional fees - annual charge for IT security and firewall services
Department of Health,NHS Blood and Transplant,23/03/2012,OTHER PROFESSIONAL FEES,Clinical,UNIVERSITY OF OXFORD,1588575,28624,Other professional fees - research and development project
Department of Health,NHS Blood and Transplant,02/03/2012,OTHER PROFESSIONAL FEES,Clinical,DEPARTMENT OF HEALTH,1578860,40000,Other professional fees - provision of health protection analytical support
Department of Health,NHS Blood and Transplant,09/03/2012,OTHER PROFESSIONAL FEES,Clinical,MEDICAL RESEARCH COUNCIL,1583614,63916,Other professional fees provision of clinical studies unit services
Department of Health,NHS Blood and Transplant,28/03/2012,OTHER PROFESSIONAL FEES,Estates & Logistics,LEASEPLAN UK LTD,1594220,5398.51,Other professional fees - monthly management charge relating to leased fleet vehicle maintenance contract
Department of Health,NHS Blood and Transplant,02/03/2012,OTHER PROFESSIONAL FEES,Estates & Logistics,LEASEPLAN UK LTD,1583350,5662.32,Other professional fees - monthly management charge relating to leased fleet vehicle maintenance contract
Department of Health,NHS Blood and Transplant,23/03/2012,OTHER PROFESSIONAL FEES,Finance,NHS SHARED BUSINESS SERVICES LTD,1588983,133000,Other professional fees - relating to transfer of payroll services to external provider
Department of Health,NHS Blood and Transplant,16/03/2012,OTHER PROFESSIONAL FEES,Organ Donation & Transplantation,QUINTILES LIMITED,1588112,25000,Other professional fees - monthly charge for UKT/ODT data collection services
Department of Health,NHS Blood and Transplant,28/03/2012,OTHER PROFESSIONAL FEES,Patient Services,INTERSERVE  CONSTRUCTION LTD,1591213,189668.44,Other professional fees - estates project management costs for testing consolidation project
Department of Health,NHS Blood and Transplant,16/03/2012,PREMISES MAINTENANCE - PLANNED,Estates & Logistics,MIDSHIRE DECOR LIMITED,1586530,649,Planned / scheduled premises maintenace costs
Department of Health,NHS Blood and Transplant,09/03/2012,PREMISES MAINTENANCE - PLANNED,Estates & Logistics,NORLAND MANAGED SERVICES,1584396,42521.01,Planned / scheduled premises maintenace costs
Department of Health,NHS Blood and Transplant,28/03/2012,PREMISES MAINTENANCE - PLANNED,Estates & Logistics,NORLAND MANAGED SERVICES,1592845,42521.01,Planned / scheduled premises maintenace costs
Department of Health,NHS Blood and Transplant,09/03/2012,PREMISES MAINTENANCE - PLANNED,Estates & Logistics,NORLAND MANAGED SERVICES,1584397,48870.96,Planned / scheduled premises maintenace costs
Department of Health,NHS Blood and Transplant,28/03/2012,PREMISES MAINTENANCE - PLANNED,Estates & Logistics,NORLAND MANAGED SERVICES,1592820,48870.96,Planned / scheduled premises maintenace costs
Department of Health,NHS Blood and Transplant,16/03/2012,PREMISES MAINTENANCE - PLANNED,Estates & Logistics,MITIE TECHNICAL FACILITIES MANAGEMENT,1586531,62489.53,Planned / scheduled premises maintenace costs
Department of Health,NHS Blood and Transplant,28/03/2012,PREMISES MAINTENANCE - PLANNED,Estates & Logistics,MITIE TECHNICAL FACILITIES MANAGEMENT,1589781,62489.53,Planned / scheduled premises maintenace costs
Department of Health,NHS Blood and Transplant,28/03/2012,POSTAGE,Blood Donation,STRALFORS,1593565,22616.02,Postage costs
Department of Health,NHS Blood and Transplant,28/03/2012,POSTAGE,Blood Donation,STRALFORS,1593555,24074.29,Postage costs
Department of Health,NHS Blood and Transplant,16/03/2012,POSTAGE,Blood Donation,STRALFORS,1585226,24373.83,Postage costs
Department of Health,NHS Blood and Transplant,23/03/2012,POSTAGE,Blood Donation,STRALFORS,1586121,24653.47,Postage costs
Department of Health,NHS Blood and Transplant,16/03/2012,POSTAGE,Blood Donation,STRALFORS,1585204,25169.48,Postage costs
Department of Health,NHS Blood and Transplant,16/03/2012,POSTAGE,Blood Donation,STRALFORS,1585188,38668.4,Postage costs
Department of Health,NHS Blood and Transplant,09/03/2012,RENT/LEASE,Estates & Logistics,UNIVERSITY HOSPITALS OF MORECAMBE BAY NHS TRUST,1580984,25364.5,Property rent costs
Department of Health,NHS Blood and Transplant,02/03/2012,RENT/LEASE,Estates & Logistics,EDDISONS,1581422,27262.8,Property rent costs
Department of Health,NHS Blood and Transplant,16/03/2012,RENT/LEASE,Estates & Logistics,CB RICHARD ELLIS (FORMERLY INSIGNIA RICHARD),1587182,31843.6,Property rent costs
Department of Health,NHS Blood and Transplant,23/03/2012,RENT/LEASE,Estates & Logistics,JONES LANG LASALLE,1588328,35259,Property rent costs
Department of Health,NHS Blood and Transplant,16/03/2012,RENT/LEASE,Estates & Logistics,JONES LANG LASALLE,1585152,36207.3,Property rent costs
Department of Health,NHS Blood and Transplant,16/03/2012,RENT/LEASE,Estates & Logistics,RHODIA UK LTD,1586131,39777.76,Property rent costs
Department of Health,NHS Blood and Transplant,30/03/2012,RENT/LEASE,Estates & Logistics,MWB BUSINESS EXCHANGE,1591994,64678.39,Property rent costs
Department of Health,NHS Blood and Transplant,02/03/2012,RENT/LEASE,Estates & Logistics,EDDISONS,1581420,77874.6,Property rent costs
Department of Health,NHS Blood and Transplant,09/03/2012,RENT/LEASE,Estates & Logistics,UKLP ASSETS LTD,1585404,131327.92,Property rent costs
Department of Health,NHS Blood and Transplant,16/03/2012,RENT/LEASE,Estates & Logistics,CAMBRIDGE UNIVERSITY HOSPITALS NHS FOUNTATION TRUST,1587151,335812.86,Property rent costs
Department of Health,NHS Blood and Transplant,28/03/2012,EQUIPMENT PURCHASES,Blood Donation,RENFREW GROUP INTERNATIONAL,1591656,27627.8,Purchase of Equipment
Department of Health,NHS Blood and Transplant,28/03/2012,EQUIPMENT PURCHASES,Blood Donation,RENFREW GROUP INTERNATIONAL,1593782,36985.19,Purchase of Equipment
Department of Health,NHS Blood and Transplant,28/03/2012,EQUIPMENT PURCHASES,Blood Donation,RENFREW GROUP INTERNATIONAL,1593303,45610.13,Purchase of Equipment
Department of Health,NHS Blood and Transplant,28/03/2012,EQUIPMENT PURCHASES,Blood Donation,RENFREW GROUP INTERNATIONAL,1593737,89681.35,Purchase of Equipment
Department of Health,NHS Blood and Transplant,09/03/2012,EQUIPMENT PURCHASES,Blood Donation,FENWAL UK LTD,1583092,215340,Purchase of Equipment
Department of Health,NHS Blood and Transplant,16/03/2012,CAPITAL PURCHASES ACCOUNT,NBS and ODT All Areas,SOFTCAT LTD,1555374,-0.01,Purchase of Fixed Assets
Department of Health,NHS Blood and Transplant,16/03/2012,CAPITAL PURCHASES ACCOUNT,NBS and ODT All Areas,SOFTCAT LTD,1578903,-0.01,Purchase of Fixed Assets
Department of Health,NHS Blood and Transplant,16/03/2012,CAPITAL PURCHASES ACCOUNT,NBS and ODT All Areas,SOFTCAT LTD,1588587,0.01,Purchase of Fixed Assets
Department of Health,NHS Blood and Transplant,02/03/2012,CAPITAL PURCHASES ACCOUNT,NBS and ODT All Areas,LABMODE LTD,1585212,26400,Purchase of Fixed Assets
Department of Health,NHS Blood and Transplant,16/03/2012,CAPITAL PURCHASES ACCOUNT,NBS and ODT All Areas,GAMIDOR TECHNICAL SERVICES LTD,1585603,27816.48,Purchase of Fixed Assets
Department of Health,NHS Blood and Transplant,02/03/2012,CAPITAL PURCHASES ACCOUNT,NBS and ODT All Areas,FENWAL EUROPE,1579216,29254.96,Purchase of Fixed Assets
Department of Health,NHS Blood and Transplant,16/03/2012,CAPITAL PURCHASES ACCOUNT,NBS and ODT All Areas,INTERSERVE  CONSTRUCTION LTD,1588899,35490.43,Purchase of Fixed Assets
Department of Health,NHS Blood and Transplant,16/03/2012,CAPITAL PURCHASES ACCOUNT,NBS and ODT All Areas,HAEMONETICS LIMITED,1588900,38085.6,Purchase of Fixed Assets
Department of Health,NHS Blood and Transplant,16/03/2012,CAPITAL PURCHASES ACCOUNT,NBS and ODT All Areas,HAEMONETICS LIMITED,1588904,38085.6,Purchase of Fixed Assets
Department of Health,NHS Blood and Transplant,16/03/2012,CAPITAL PURCHASES ACCOUNT,NBS and ODT All Areas,HAEMONETICS LIMITED,1588905,38085.6,Purchase of Fixed Assets
Department of Health,NHS Blood and Transplant,16/03/2012,CAPITAL PURCHASES ACCOUNT,NBS and ODT All Areas,CSA WAVERLEY LIMITED,1587941,38868.37,Purchase of Fixed Assets
Department of Health,NHS Blood and Transplant,23/03/2012,CAPITAL PURCHASES ACCOUNT,NBS and ODT All Areas,SANYO E&E EUROPE BV,1590710,39423.72,Purchase of Fixed Assets
Department of Health,NHS Blood and Transplant,16/03/2012,CAPITAL PURCHASES ACCOUNT,NBS and ODT All Areas,VH BIO LTD,1588952,39540,Purchase of Fixed Assets
Department of Health,NHS Blood and Transplant,16/03/2012,CAPITAL PURCHASES ACCOUNT,NBS and ODT All Areas,VH BIO LTD,1588954,39540,Purchase of Fixed Assets
Department of Health,NHS Blood and Transplant,16/03/2012,CAPITAL PURCHASES ACCOUNT,NBS and ODT All Areas,BYTES TECHNOLOGY GROUP,1585803,44908.7,Purchase of Fixed Assets
Department of Health,NHS Blood and Transplant,23/03/2012,CAPITAL PURCHASES ACCOUNT,NBS and ODT All Areas,SANYO E&E EUROPE BV,1589039,45926.4,Purchase of Fixed Assets
Department of Health,NHS Blood and Transplant,23/03/2012,CAPITAL PURCHASES ACCOUNT,NBS and ODT All Areas,GAMIDOR TECHNICAL SERVICES LTD,1588227,46360.8,Purchase of Fixed Assets
Department of Health,NHS Blood and Transplant,23/03/2012,CAPITAL PURCHASES ACCOUNT,NBS and ODT All Areas,TRUSTMARQUE SOLUTIONS,1590857,46583.64,Purchase of Fixed Assets
Department of Health,NHS Blood and Transplant,23/03/2012,CAPITAL PURCHASES ACCOUNT,NBS and ODT All Areas,CSA WAVERLEY LIMITED,1591832,47090.04,Purchase of Fixed Assets
Department of Health,NHS Blood and Transplant,16/03/2012,CAPITAL PURCHASES ACCOUNT,NBS and ODT All Areas,FULWOOD ROOFING SERVICES (NORTHERN) LTD,1588033,50261.07,Purchase of Fixed Assets
Department of Health,NHS Blood and Transplant,30/03/2012,CAPITAL PURCHASES ACCOUNT,NBS and ODT All Areas,ASHE CONSTRUCTION LTD,1588694,53658.45,Purchase of Fixed Assets
Department of Health,NHS Blood and Transplant,23/03/2012,CAPITAL PURCHASES ACCOUNT,NBS and ODT All Areas,INTERSERVE  CONSTRUCTION LTD,1591496,53754.1,Purchase of Fixed Assets
Department of Health,NHS Blood and Transplant,23/03/2012,CAPITAL PURCHASES ACCOUNT,NBS and ODT All Areas,BECKMAN COULTER UK LTD,1590826,54000,Purchase of Fixed Assets
Department of Health,NHS Blood and Transplant,23/03/2012,CAPITAL PURCHASES ACCOUNT,NBS and ODT All Areas,MATRIX CONTROL SOLUTIONS LTD,1591399,56379.9,Purchase of Fixed Assets
Department of Health,NHS Blood and Transplant,28/03/2012,CAPITAL PURCHASES ACCOUNT,NBS and ODT All Areas,INTERSERVE  CONSTRUCTION LTD,1592233,58758.38,Purchase of Fixed Assets
Department of Health,NHS Blood and Transplant,16/03/2012,CAPITAL PURCHASES ACCOUNT,NBS and ODT All Areas,JOHNSON & JOHNSON MEDICAL LTD (THERAKOS),1588957,66300,Purchase of Fixed Assets
Department of Health,NHS Blood and Transplant,16/03/2012,CAPITAL PURCHASES ACCOUNT,NBS and ODT All Areas,INTERSERVE  CONSTRUCTION LTD,1585198,68497.16,Purchase of Fixed Assets
Department of Health,NHS Blood and Transplant,16/03/2012,CAPITAL PURCHASES ACCOUNT,NBS and ODT All Areas,HAEMONETICS LIMITED,1588903,76171.2,Purchase of Fixed Assets
Department of Health,NHS Blood and Transplant,02/03/2012,CAPITAL PURCHASES ACCOUNT,NBS and ODT All Areas,H MALONE & SONS LIMITED,1578723,81214.79,Purchase of Fixed Assets
Department of Health,NHS Blood and Transplant,23/03/2012,CAPITAL PURCHASES ACCOUNT,NBS and ODT All Areas,INTERSERVE  CONSTRUCTION LTD,1591018,82867.46,Purchase of Fixed Assets
Department of Health,NHS Blood and Transplant,23/03/2012,CAPITAL PURCHASES ACCOUNT,NBS and ODT All Areas,THERMO FISHER SCIENTIFIC,1589928,87372,Purchase of Fixed Assets
Department of Health,NHS Blood and Transplant,23/03/2012,CAPITAL PURCHASES ACCOUNT,NBS and ODT All Areas,INTERSERVE  CONSTRUCTION LTD,1591248,88141.56,Purchase of Fixed Assets
Department of Health,NHS Blood and Transplant,16/03/2012,CAPITAL PURCHASES ACCOUNT,NBS and ODT All Areas,BECKMAN COULTER UK LTD,1587885,90000,Purchase of Fixed Assets
Department of Health,NHS Blood and Transplant,23/03/2012,CAPITAL PURCHASES ACCOUNT,NBS and ODT All Areas,BECKMAN COULTER UK LTD,1589922,90000,Purchase of Fixed Assets
Department of Health,NHS Blood and Transplant,28/03/2012,CAPITAL PURCHASES ACCOUNT,NBS and ODT All Areas,INTERSERVE  CONSTRUCTION LTD,1593400,98672.45,Purchase of Fixed Assets
Department of Health,NHS Blood and Transplant,02/03/2012,CAPITAL PURCHASES ACCOUNT,NBS and ODT All Areas,FULWOOD ROOFING SERVICES (NORTHERN) LTD,1579094,119390,Purchase of Fixed Assets
Department of Health,NHS Blood and Transplant,16/03/2012,CAPITAL PURCHASES ACCOUNT,NBS and ODT All Areas,TERUMO BCT EUROPE NV/SA (CARIDIAN),1588621,164000,Purchase of Fixed Assets
Department of Health,NHS Blood and Transplant,30/03/2012,CAPITAL PURCHASES ACCOUNT,NBS and ODT All Areas,SOFTCAT LTD,1595115,182160,Purchase of Fixed Assets
Department of Health,NHS Blood and Transplant,23/03/2012,CAPITAL PURCHASES ACCOUNT,NBS and ODT All Areas,MITIE TECHNICAL FACILITIES MANAGEMENT,1590868,190946.06,Purchase of Fixed Assets
Department of Health,NHS Blood and Transplant,16/03/2012,CAPITAL PURCHASES ACCOUNT,NBS and ODT All Areas,TERUMO BCT EUROPE NV/SA (CARIDIAN),1588618,205000,Purchase of Fixed Assets
Department of Health,NHS Blood and Transplant,23/03/2012,CAPITAL PURCHASES ACCOUNT,NBS and ODT All Areas,BECKMAN COULTER UK LTD,1590825,456000,Purchase of Fixed Assets
Department of Health,NHS Blood and Transplant,28/03/2012,IT HARDWARE,Business Transformation Services,COMPUTACENTER  UK LTD,1588430,2750,Purchase of IT hardware
Department of Health,NHS Blood and Transplant,30/03/2012,IT HARDWARE,Business Transformation Services,STONE COMPUTERS LTD,1595398,99552,Purchase of IT hardware
Department of Health,NHS Blood and Transplant,30/03/2012,IT HARDWARE,Business Transformation Services,STONE COMPUTERS LTD,1595186,99938.21,Purchase of IT hardware
Department of Health,NHS Blood and Transplant,16/03/2012,IT HARDWARE,NBS and ODT All Areas,SOFTCAT LTD,1588587,-206165.5,Purchase of IT hardware
Department of Health,NHS Blood and Transplant,16/03/2012,IT HARDWARE,NBS and ODT All Areas,CSA WAVERLEY LIMITED,1587945,61200.53,Purchase of IT hardware
Department of Health,NHS Blood and Transplant,16/03/2012,IT HARDWARE,NBS and ODT All Areas,SOFTCAT LTD,1555374,206165.5,Purchase of IT hardware
Department of Health,NHS Blood and Transplant,16/03/2012,IT HARDWARE,NBS and ODT All Areas,SOFTCAT LTD,1578903,206165.5,Purchase of IT hardware
Department of Health,NHS Blood and Transplant,16/03/2012,IT SOFTWARE,Business Transformation Services,BYTES TECHNOLOGY GROUP,1585582,65820.86,Purchase of IT software
Department of Health,NHS Blood and Transplant,28/03/2012,IT SOFTWARE,Business Transformation Services,SAVANT LIMITED,1587220,113417.68,Purchase of IT software
Department of Health,NHS Blood and Transplant,16/03/2012,IT SOFTWARE LICENCE FEES,Business Transformation Services,CABLE & WIRELESS COMMUNICATIONS MILTON KEYNES,1581646,5620.66,Purchase of IT software licences
Department of Health,NHS Blood and Transplant,28/03/2012,IT SOFTWARE LICENCE FEES,Business Transformation Services,TRUSTMARQUE SOLUTIONS,1591649,26259.6,Purchase of IT software licences
Department of Health,NHS Blood and Transplant,16/03/2012,IT SOFTWARE LICENCE FEES,NBS and ODT All Areas,SOFTCAT LTD,1588587,-67072.91,Purchase of IT software licences
Department of Health,NHS Blood and Transplant,16/03/2012,IT SOFTWARE LICENCE FEES,NBS and ODT All Areas,SOFTCAT LTD,1555374,67072.91,Purchase of IT software licences
Department of Health,NHS Blood and Transplant,16/03/2012,IT SOFTWARE LICENCE FEES,NBS and ODT All Areas,SOFTCAT LTD,1578903,67072.91,Purchase of IT software licences
Department of Health,NHS Blood and Transplant,02/03/2012,PUBLICATIONS/BOOKS/JOURNALS,Human Resources,EBSCO INFORMATION SERVICES,1583316,65022.15,"Purchase of publications, books and journals"
Department of Health,NHS Blood and Transplant,02/03/2012,PUBLICATIONS/BOOKS/JOURNALS,Specialist Services,EBSCO INFORMATION SERVICES,1583316,1396.22,"Purchase of publications, books and journals"
Department of Health,NHS Blood and Transplant,16/03/2012,SCIENTIFIC & TECHNICAL BAND 7,Clinical,MEDICAL RESEARCH COUNCIL,1588578,33249,Recharge for services of Scientific and Technical Staff
Department of Health,NHS Blood and Transplant,16/03/2012,TELEPHONES,Blood Donation,BRITISH TELECOMMUNICATIONS PLC NEWCASTLE,1521465,202.29,Telephone costs
Department of Health,NHS Blood and Transplant,16/03/2012,TELEPHONES,Business Transformation Services,BRITISH TELECOMMUNICATIONS PLC NEWCASTLE,1521465,23723.84,Telephone costs
Department of Health,NHS Blood and Transplant,16/03/2012,TELEPHONES,Business Transformation Services,CABLE & WIRELESS COMMUNICATIONS MILTON KEYNES,1581646,80342.91,Telephone costs
Department of Health,NHS Blood and Transplant,16/03/2012,TELEPHONES,Organ Donation & Transplantation,BRITISH TELECOMMUNICATIONS PLC NEWCASTLE,1521465,-1300.45,Telephone costs
Department of Health,NHS Blood and Transplant,30/03/2012,CONTINGENCY,Estates & Logistics,INTERSERVE  CONSTRUCTION LTD,1594337,36546.17,Project Management costs for estates project
Department of Health,NHS Blood and Transplant,28/03/2012,TRAINING AND CONFERENCES ANC,Human Resources,HUMAN FERTILISATION & EMBRYOLOGY AUTHORITY,1588330,39000,Training and Conference costs for Ancillary Staff
Department of Health,NHS Blood and Transplant,30/03/2012,TRAVEL AND HOTEL SUSPENSE ACCOUNT,NBS and ODT All Areas,EXPOTEL,1595040,91326.14,Travel and hotel costs arising from central booking system used
Department of Health,NHS Blood and Transplant,28/03/2012,TRAVEL AND HOTEL SUSPENSE ACCOUNT,NBS and ODT All Areas,EXPOTEL,1590968,100886.51,Travel and hotel costs arising from central booking system used
Department of Health,NHS Blood and Transplant,28/03/2012,TRAVEL AND HOTEL SUSPENSE ACCOUNT,NBS and ODT All Areas,REDFERN TRAVEL LTD,1593385,159189.63,Travel and hotel costs arising from central booking system used
Department of Health,NHS Blood and Transplant,23/03/2012,TRAVEL AND HOTEL SUSPENSE ACCOUNT,NBS and ODT All Areas,REDFERN TRAVEL LTD,1590948,172423.6,Travel and hotel costs arising from central booking system used
Department of Health,NHS Blood and Transplant,09/03/2012,TRAVEL,Estates & Logistics,TNT EXPRESS UK LTD,1586561,21181.1,Travel costs
Department of Health,NHS Blood and Transplant,13/03/2012,PURCHASING CARD SUSPENSE,NBS and ODT All Areas,Royal Bank of Scotland plc,Direct Debit,35804.29,Purchasing Card Expenditure
Department of Health,NHS Blood and Transplant,15/03/2012,CAPITAL CHARGES CONTROL,NBS and ODT All Areas,Department of Health,2166,8762000,Payment to DH for capital charges amounts collected from customers through prices
Department of Health,NHS Blood and Transplant,16/03/2012,ORGAN RETREIVAL CONTRACTS,Organ Donation & Transplantation,Cambridge Univ Hosp NHS Foundation Trust,2169,458922,Contracts with other NHS bodies for organ retrieval teams
Department of Health,NHS Blood and Transplant,16/03/2012,ORGAN RETREIVAL CONTRACTS,Organ Donation & Transplantation,University Hospital Birmingham NHS Foundation Trust,2169,571355,Contracts with other NHS bodies for organ retrieval teams
Department of Health,NHS Blood and Transplant,16/03/2012,ORGAN RETREIVAL CONTRACTS,Organ Donation & Transplantation,Cardiff and Vale University Health Board,2169,79720,Contracts with other NHS bodies for organ retrieval teams
Department of Health,NHS Blood and Transplant,16/03/2012,ORGAN RETREIVAL CONTRACTS,Organ Donation & Transplantation,Royal Brompton And Harefield NHS Foundation Trust,2169,474159,Contracts with other NHS bodies for organ retrieval teams
Department of Health,NHS Blood and Transplant,16/03/2012,ORGAN RETREIVAL CONTRACTS,Organ Donation & Transplantation,Kings College Hospital NHS Foundation Trust,2169,290894,Contracts with other NHS bodies for organ retrieval teams
Department of Health,NHS Blood and Transplant,16/03/2012,ORGAN RETREIVAL CONTRACTS,Organ Donation & Transplantation,Leeds Teaching Hospitals NHS Trust,2169,417375,Contracts with other NHS bodies for organ retrieval teams
Department of Health,NHS Blood and Transplant,16/03/2012,ORGAN RETREIVAL CONTRACTS,Organ Donation & Transplantation,Central Manchester University Hospitals NHS Foundation Trust,2169,222487,Contracts with other NHS bodies for organ retrieval teams
Department of Health,NHS Blood and Transplant,16/03/2012,ORGAN RETREIVAL CONTRACTS,Organ Donation & Transplantation,Newcastle Upon Tyne Hospitals NHS Foundation Trust,2169,1355625,Contracts with other NHS bodies for organ retrieval teams
Department of Health,NHS Blood and Transplant,16/03/2012,ORGAN RETREIVAL CONTRACTS,Organ Donation & Transplantation,Oxford Radcliffe Hospital NHS Trust,2169,312384,Contracts with other NHS bodies for organ retrieval teams
Department of Health,NHS Blood and Transplant,16/03/2012,ORGAN RETREIVAL CONTRACTS,Organ Donation & Transplantation,Papworth Hospital NHS Foundation Trust,2169,369580,Contracts with other NHS bodies for organ retrieval teams
Department of Health,NHS Blood and Transplant,16/03/2012,ORGAN RETREIVAL CONTRACTS,Organ Donation & Transplantation,Royal Free Hampstead NHS Trust,2169,456363,Contracts with other NHS bodies for organ retrieval teams
Department of Health,NHS Blood and Transplant,16/03/2012,ORGAN RETREIVAL CONTRACTS,Organ Donation & Transplantation,NHS Lothian,2169,493488,Contracts with other NHS bodies for organ retrieval teams
Department of Health,NHS Blood and Transplant,16/03/2012,ORGAN RETREIVAL CONTRACTS,Organ Donation & Transplantation,University Hospital Of South Manchester NHS Foundation Trust,2169,217263,Contracts with other NHS bodies for organ retrieval teams
Department of Health,NHS Blood and Transplant,23/03/2012,ODT DONOR MANAGEMENT REIMBURSEMENT,Organ Donation & Transplantation,Cambridge Univ Hosp NHS Foundation Trust,2171,25032,Reimbursement to other NHS bodies for organ donation scheme related costs
Department of Health,NHS Blood and Transplant,23/03/2012,CONSULTANT,Organ Donation & Transplantation,The Lewisham Hospital NHS Trust,2170,26598,Reimbursement to other NHS bodies for Medical Consultant staff
Department of Health,NHS Blood and Transplant,12/03/2012,EARLY RETIREMENT COSTS,Transition,NHS Pensions,2164,102896.75,Capitalised value of Early Retirement Costs
Department of Health,NHS Blood and Transplant,12/03/2012,EARLY RETIREMENT COSTS,Transition,NHS Pensions,2165,37094.1,Capitalised value of Early Retirement Costs
